bitfinex/quotes_ETHUSD_20250916
["timestamp","ask_amount","ask_price","bid_price","bid_amount"]
[1758044285627,11.62486759,4495.5,4495.4,0.001]
[1758044285823,11.39316759,4495.5,4495.4,0.001]
[1758044286172,6.11582841,4495.5,4495.4,1.1025]
[1758044286318,9.95282841,4495.5,4495.4,2.0256]
[1758044286519,0.89138175,4495.5,4495.4,2.0256]
[1758044286744,6.37940762,4495.5,4495.4,2.0256]
[1758044286953,6.58716858,4495.5,4495.4,1.5898]
[1758044287269,8.29176707,4495.5,4495.4,0.793]
[1758044287617,8.51796707,4495.5,4495.4,0.793]
[1758044287820,8.51796707,4495.5,4495.4,0.001]
[1758044287821,11.97346707,4495.5,4495.4,0.001]
[1758044288117,11.51763911,4495.5,4495.4,0.001]
[1758044288346,11.29243911,4495.5,4495.4,0.001]
[1758044288670,11.29243911,4495.5,4495.4,0.3105]
[1758044288822,11.29243911,4495.5,4495.4,0.001]
[1758044289019,11.40743911,4495.5,4495.4,0.001]
[1758044289370,2.22454563,4495.3,4495.1,1e-08]
[1758044289533,24.26014945,4495.2,4495.1,1e-08]
[1758044289871,7.23634891,4495.2,4495.1,1e-08]
[1758044290045,6.42546343,4495.2,4495.1,1e-08]
[1758044290226,6.11786343,4495.2,4495.1,1e-08]
[1758044290425,9.95686343,4495.2,4495.1,1e-08]
[1758044290752,11.79911137,4495.2,4495.1,1e-08]
[1758044290951,11.49151137,4495.2,4495.1,1e-08]
[1758044291379,7.65251137,4495.2,4495.1,1e-08]
[1758044291678,9.95686343,4495.2,4495.1,1.23260001]
[1758044291878,9.95686343,4495.2,4495.1,2.02460001]
[1758044293061,9.95686343,4495.2,4495.1,0.79200001]
[1758044293248,9.95686343,4495.2,4495.1,1e-08]
[1758044293977,6.11786343,4495.2,4495.1,1e-08]
[1758044294158,9.47678908,4495.2,4495.1,0.30950001]
[1758044294496,6.11786343,4495.2,4495.1,0.79680001]
[1758044294657,9.47678908,4495.2,4495.1,0.79680001]
[1758044294974,9.95486343,4495.2,4495.1,1.23260001]
[1758044295150,9.95486343,4495.2,4495.1,1e-08]
[1758044295350,6.11786343,4495.2,4495.1,1e-08]
[1758044295662,7.25119396,4495.2,4495.1,1.23260001]
[1758044295860,9.95386343,4495.2,4495.1,0.79680001]
[1758044296290,9.95386343,4495.2,4495.1,0.30950001]
[1758044296850,11.39590017,4495.2,4495.1,1e-08]
[1758044297070,11.83410017,4495.2,4495.1,1e-08]
[1758044297257,11.83410017,4495.2,4495.1,0.00100001]
[1758044297686,11.83496319,4495.2,4495.1,0.00100001]
[1758044297890,11.18900223,4495.2,4495.1,0.00100001]
[1758044298053,12.59462189,4495.2,4495.1,0.00100001]
[1758044298728,13.7898175,4495.2,4495.1,0.00100001]
[1758044298932,12.59507662,4495.2,4495.1,0.00100001]
[1758044299233,2.52875441,4495.1,4494.1,1e-08]
[1758044299462,2.22509011,4494.2,4494.1,1e-08]
[1758044299603,8.97032507,4494.2,4494.1,1e-08]
[1758044299801,2.22513962,4494.1,4493.1,0.01]
[1758044300030,2.22558532,4493.2,4493.1,0.01]
[1758044300217,2.22558532,4493.2,4492.1,0.4973]
[1758044300218,2.22608076,4492.2,4492.1,0.01]
[1758044300536,9.05908076,4492.2,4492.1,0.01]
[1758044300707,9.26714582,4492.2,4492.1,0.01]
[1758044301113,9.26714582,4492.2,4492.1,0.8068]
[1758044301344,9.26709309,4492.2,4492.1,1.2426]
[1758044301640,7.04501233,4492.2,4492.1,1.37886]
[1758044301808,7.04501233,4492.2,4492.1,2.17086]
[1758044301809,3.89569768,4492.2,4492.1,2.17086]
[1758044302010,0.42069768,4492.2,4492.1,2.17086]
[1758044302240,1.19836459,4493.1,4492.2,0.792]
[1758044302456,1.71,4493.2,4493.1,1.1015]
[1758044302654,7.78358532,4493.2,4493.1,0.7968]
[1758044302944,5.558,4493.2,4493.1,1.2326]
[1758044303146,3.0,4493.2,4493.1,1.2326]
[1758044303345,3.0,4493.2,4493.1,2.22706]
[1758044303510,3.0,4493.2,4493.1,2.0246]
[1758044303715,6.854,4493.2,4493.1,2.0246]
[1758044304644,2.22534457,4493.7,4493.1,2.0246]
[1758044304645,1.19836459,4494.0,4493.2,0.792]
[1758044304850,1.19836459,4494.2,4493.9,0.2972]
[1758044305064,5.22518914,4494.0,4493.9,1.0892]
[1758044305437,9.08518914,4494.0,4493.9,1.5636]
[1758044305640,6.86,4494.0,4493.9,1.5636]
[1758044305839,6.859,4494.0,4493.9,2.0359]
[1758044306183,1.20836459,4494.9,4494.0,0.792]
[1758044306457,1.20836459,4494.9,4493.9,2.0359]
[1758044306458,2.22484259,4494.7,4494.2,0.792]
[1758044306659,2.22498136,4494.5,4494.4,0.792]
[1758044306860,5.22498136,4494.5,4494.4,0.792]
[1758044307045,3.0,4494.5,4494.4,1.0892]
[1758044307249,3.01,4494.9,4494.4,1.5615]
[1758044307454,3.01,4494.9,4494.5,0.9467]
[1758044307455,2.22483552,4494.8,4494.5,0.9467]
[1758044307624,0.01,4494.9,4494.6,0.792]
[1758044307828,6.858,4494.8,4494.7,0.792]
[1758044308138,9.08179309,4494.8,4494.7,2.0359]
[1758044308324,6.857,4494.8,4494.7,2.0359]
[1758044308523,0.01,4494.9,4494.7,2.0359]
[1758044308724,0.01,4494.9,4494.8,1.7387]
[1758044309248,0.01,4494.9,4494.8,2.26173793]
[1758044309438,0.01,4494.9,4494.8,2.23949]
[1758044310964,0.01,4494.9,4494.8,2.26173793]
[1758044311872,0.01,4494.9,4494.8,10.05153102]
[1758044312176,0.01,4494.9,4494.8,10.02928309]
[1758044313587,0.01,4494.9,4494.8,11.46928309]
[1758044313947,0.01,4494.9,4494.8,25.96828309]
[1758044314480,0.01,4494.9,4494.8,24.52828309]
[1758044316373,0.01,4494.9,4494.8,24.52928309]
[1758044317576,0.01,4494.9,4494.8,24.52428309]
[1758044318957,0.01,4494.9,4494.8,20.67528309]
[1758044319369,0.01,4494.9,4494.8,24.52228309]
[1758044321064,1e-08,4494.9,4494.8,24.52228309]
[1758044321750,1e-08,4494.9,4494.8,24.63348309]
[1758044322366,1e-08,4494.9,4494.8,10.13348309]
[1758044322861,1e-08,4494.9,4494.8,24.63348309]
[1758044324404,1e-08,4494.9,4494.8,27.52228309]
[1758044324698,1e-08,4494.9,4494.8,27.63348309]
[1758044325396,0.002,4495.4,4495.3,3.01654563]
[1758044325599,0.002,4496.1,4495.4,3.792]
[1758044325890,0.002,4496.1,4496.0,3.31339928]
[1758044326072,0.002,4496.1,4496.0,23.38564127]
[1758044326273,0.002,4496.1,4496.0,24.31009928]
[1758044326491,0.002,4496.1,4496.0,26.52805809]
[1758044327578,0.002,4496.1,4496.0,25.73605809]
[1758044327773,0.002,4496.1,4496.0,21.89605809]
[1758044327974,0.002,4496.1,4496.0,26.52605809]
[1758044329099,0.002,4496.1,4496.0,29.52605809]
[1758044329864,0.002,4496.1,4496.0,25.68805809]
[1758044330193,0.002,4496.1,4496.0,28.28015809]
[1758044330365,0.002,4496.1,4496.0,28.57735809]
[1758044330570,0.002,4496.1,4496.0,29.52405809]
[1758044330793,0.002,4496.1,4496.0,25.68805809]
[1758044330954,0.002,4496.1,4496.0,29.52505809]
[1758044331266,0.002,4496.1,4496.0,28.73305809]
[1758044331654,0.002,4496.1,4496.0,29.52505809]
[1758044332596,0.002,4496.1,4496.0,25.21575809]
[1758044332892,0.002,4496.1,4496.0,29.52505809]
[1758044335770,0.002,4496.1,4496.0,29.63625809]
[1758044339607,0.002,4496.1,4496.0,29.62925809]
[1758044339809,0.002,4496.1,4496.0,25.79925809]
[1758044340024,0.002,4496.1,4496.0,29.62825809]
[1758044340164,0.002,4496.1,4496.0,28.38435809]
[1758044340369,0.002,4496.1,4496.0,28.69225809]
[1758044340719,0.002,4496.1,4496.0,29.15015809]
[1758044341460,0.002,4496.1,4496.0,29.58665809]
[1758044341660,0.002,4496.1,4496.0,36.47545809]
[1758044341866,0.002,4496.1,4496.0,36.58665809]
[1758044342498,1e-08,4496.6,4496.5,3.01595196]
[1758044342712,1e-08,4496.6,4496.5,7.36594913]
[1758044343013,1e-08,4496.6,4496.5,7.78424913]
[1758044343193,1e-08,4496.6,4496.5,4.41614913]
[1758044343366,1e-08,4496.6,4496.5,22.74214913]
[1758044343613,0.002,4497.0,4496.5,22.74214913]
[1758044343614,1e-08,4497.0,4496.9,3.01575414]
[1758044343766,1e-08,4497.0,4496.9,12.17456709]
[1758044344084,0.4702,4498.4,4497.4,3.01550691]
[1758044344301,0.002,4498.4,4497.4,25.7324939]
[1758044344470,1e-08,4497.9,4497.8,3.01530917]
[1758044344809,1e-08,4497.9,4497.8,23.07254226]
[1758044344977,1e-08,4497.9,4497.8,26.4619355]
[1758044345369,0.002,4498.4,4498.3,3.01506204]
[1758044345370,1e-08,4498.4,4498.3,3.01506204]
[1758044345666,1e-08,4498.4,4498.3,6.01506204]
[1758044345887,0.29790001,4498.4,4498.3,9.95246204]
[1758044346087,1.20430001,4498.4,4498.3,4.72406204]
[1758044346291,1.20430001,4498.4,4498.3,8.55306204]
[1758044347003,0.29790001,4498.4,4498.3,9.63068148]
[1758044347494,1.20430001,4498.4,4498.3,9.63068148]
[1758044348001,0.76610001,4498.4,4498.3,9.63068148]
[1758044348299,1e-08,4498.4,4498.3,9.63068148]
[1758044348499,0.76610001,4498.4,4498.3,5.80168148]
[1758044348715,1.20430001,4498.4,4498.3,9.62868148]
[1758044348921,1.20430001,4498.4,4498.3,5.80168148]
[1758044349071,1.20430001,4498.4,4498.3,23.05106204]
[1758044349272,1.20430001,4498.4,4498.3,19.22406204]
[1758044349505,1.20430001,4498.4,4498.3,8.55206204]
[1758044353378,1.41139653,4498.4,4498.3,8.55206204]
[1758044353577,1.20430001,4498.4,4498.3,8.55206204]
[1758044354083,0.76610001,4498.4,4498.3,8.55206204]
[1758044354284,0.97319653,4498.4,4498.3,8.55206204]
[1758044354499,1.41139653,4498.4,4498.3,8.55206204]
[1758044354675,1.41139653,4498.4,4498.3,8.54606204]
[1758044354878,0.97319653,4498.4,4498.3,8.54606204]
[1758044355637,0.50499653,4498.4,4498.3,8.54606204]
[1758044355837,0.71235473,4498.4,4498.3,8.54606204]
[1758044356014,0.71235473,4498.4,4498.3,8.65646204]
[1758044356426,0.71235473,4498.4,4498.3,23.15646204]
[1758044356630,1.18055473,4498.4,4498.3,8.65646204]
[1758044357004,0.41445473,4498.4,4498.3,24.552323]
[1758044357203,1e-08,4498.4,4498.3,25.446723]
[1758044357402,0.76610001,4498.4,4498.3,19.22406204]
[1758044357605,0.76610001,4498.4,4498.3,23.04306204]
[1758044357606,1.61912361,4498.4,4498.3,23.04306204]
[1758044357938,1.61912361,4498.4,4498.3,8.54306204]
[1758044358515,1.61912361,4498.4,4497.2,0.4579]
[1758044358516,3.0,4498.2,4496.0,0.41580293]
[1758044358745,3.0,4498.2,4496.0,0.001]
[1758044358746,2.22410035,4496.2,4496.0,0.001]
[1758044358931,3.41485848,4496.2,4496.0,0.285]
[1758044359238,2.09715813,4496.2,4496.0,0.285]
[1758044359544,4.32125848,4496.2,4496.0,0.285]
[1758044359728,2.09715813,4496.2,4496.0,0.285]
[1758044360237,1.1809236,4496.2,4496.0,0.285]
[1758044360615,1.6191236,4496.2,4496.0,0.285]
[1758044361248,1.6191236,4496.2,4496.1,0.802]
[1758044361553,1.6191236,4496.2,4496.1,0.01]
[1758044361725,2.00343998,4496.2,4496.1,0.01]
[1758044362046,1.6191236,4496.2,4496.1,0.01]
[1758044362951,1.1809236,4496.2,4496.1,4.689]
[1758044363131,1.4117118,4496.2,4496.1,4.689]
[1758044364265,1.4117118,4496.2,4496.1,4.69]
[1758044364617,1.6191236,4496.2,4496.1,0.802]
[1758044364810,1.4117118,4496.2,4496.1,0.802]
[1758044365421,3.63581215,4496.2,4496.1,0.802]
[1758044366046,1.4112376,4496.2,4496.1,0.802]
[1758044366653,0.9730376,4496.2,4496.1,0.82424149]
[1758044366854,0.9730376,4496.2,4496.1,0.802]
[1758044367015,1.4112376,4496.2,4496.1,0.802]
[1758044369262,1.2043,4496.2,4496.1,0.802]
[1758044369468,6.78758171,4496.2,4496.1,0.01]
[1758044369763,7.47065791,4496.2,4496.1,0.01]
[1758044370768,7.03245791,4496.2,4496.1,0.01]
[1758044370974,7.47065791,4496.2,4496.1,0.01]
[1758044372245,6.99426981,4496.2,4496.1,0.01]
[1758044373261,6.55606981,4496.2,4496.1,0.011]
[1758044373577,6.99426981,4496.2,4496.1,0.011]
[1758044376682,6.78758171,4496.2,4496.1,0.011]
[1758044376854,11.35158583,4496.2,4496.1,0.011]
[1758044377386,4.18684172,4496.2,4496.1,0.011]
[1758044377541,5.93535743,4496.2,4496.1,0.011]
[1758044378183,6.37965743,4496.2,4496.1,0.011]
[1758044378752,3.41335708,4496.2,4496.1,0.011]
[1758044378951,5.92985743,4496.2,4496.1,0.011]
[1758044379642,6.37415743,4496.2,4496.1,0.011]
[1758044380162,8.23067365,4496.2,4496.1,0.011]
[1758044380645,6.0065733,4496.2,4496.1,0.011]
[1758044380845,5.63745743,4496.2,4496.1,0.011]
[1758044381852,3.70575708,4496.2,4496.1,0.011]
[1758044382054,3.41335708,4496.2,4496.1,0.011]
[1758044382258,3.41335708,4496.2,4496.1,1.5729]
[1758044382475,3.52455708,4496.2,4496.1,1.5729]
[1758044383068,6.04105743,4496.2,4496.1,0.803]
[1758044383387,7.87016498,4496.2,4496.1,0.011]
[1758044383558,8.30836498,4496.2,4496.1,0.011]
[1758044384155,5.67846942,4496.2,4496.1,0.011]
[1758044384563,11.29786498,4496.2,4496.1,0.011]
[1758044384777,11.77456977,4496.2,4496.1,0.011]
[1758044385898,12.21886977,4496.2,4496.1,0.011]
[1758044386209,11.77456977,4496.2,4496.1,0.011]
[1758044386875,10.38976222,4496.2,4496.1,0.011]
[1758044387376,10.38976222,4496.2,4496.1,1.1122]
[1758044387377,9.98616222,4496.2,4496.1,1.1122]
[1758044388078,9.98616222,4496.2,4496.1,0.803]
[1758044388409,3.89130245,4496.2,4496.1,1.5729]
[1758044388910,0.89130245,4496.2,4496.1,2.0155]
[1758044389113,0.89130245,4496.2,4496.1,1.5729]
[1758044389410,3.1154028,4496.2,4496.1,1.5729]
[1758044389613,0.89130245,4496.2,4496.1,1.1122]
[1758044390317,3.4078028,4496.2,4496.1,0.803]
[1758044390814,1.18370245,4496.2,4496.1,0.803]
[1758044391013,3.4078028,4496.2,4496.1,0.803]
[1758044391220,1.18370245,4496.2,4496.1,0.803]
[1758044391512,0.89130245,4496.2,4496.1,0.803]
[1758044391914,1.18370245,4496.2,4496.1,0.803]
[1758044392115,3.4078028,4496.2,4496.1,0.803]
[1758044392719,0.89130245,4496.2,4496.1,0.803]
[1758044394878,3.1154028,4496.2,4496.1,0.803]
[1758044395215,6.8565028,4496.2,4496.1,0.011]
[1758044395418,7.83976343,4496.2,4496.1,0.011]
[1758044395617,11.69476343,4496.2,4496.1,0.011]
[1758044397913,11.6948955,4496.2,4496.1,0.011]
[1758044399120,5.22414981,4496.1,4496.0,0.001]
[1758044399315,8.24860886,4496.1,4496.0,0.001]
[1758044399522,8.55970886,4496.1,4496.0,0.001]
[1758044399722,8.99790886,4496.1,4496.0,0.001]
[1758044400443,8.99790886,4496.1,4495.6,0.001]
[1758044400444,2.22434771,4495.7,4495.6,0.001]
[1758044400614,6.11578223,4495.7,4495.6,0.001]
[1758044400813,7.3984588,4495.7,4495.6,0.001]
[1758044401142,7.83044243,4495.7,4495.6,0.001]
[1758044401341,7.83045007,4495.7,4495.6,0.001]
[1758044401540,8.60065816,4495.7,4495.6,0.001]
[1758044401742,3.89342579,4495.7,4495.6,2.0433]
[1758044401949,4.00462579,4495.7,4495.6,2.0433]
[1758044402508,0.527921,4495.7,4495.6,2.0433]
[1758044404060,0.527921,4495.7,4495.6,1.5737]
[1758044404339,0.31955668,4495.7,4495.6,2.42543549]
[1758044404506,0.1112,4495.7,4495.6,2.42543549]
[1758044404707,0.31952798,4495.7,4495.6,2.42543549]
[1758044404907,0.1112,4495.7,4495.6,2.42543549]
[1758044405546,0.1112,4495.7,4495.6,1.17513549]
[1758044405748,0.63062571,4495.7,4495.6,0.793]
[1758044406056,0.52785118,4495.7,4495.6,1.5737]
[1758044406255,0.52785118,4495.7,4495.6,2.0433]
[1758044406457,0.1112,4495.7,4495.6,2.0433]
[1758044406630,0.1112,4495.7,4495.6,2.06554397]
[1758044406835,0.1112,4495.7,4495.6,2.4946418]
[1758044407032,0.31952619,4495.7,4495.6,4.71903898]
[1758044407336,0.1112,4496.2,4495.9,0.792]
[1758044407547,0.41667843,4496.1,4496.0,1.77004199]
[1758044407761,0.41667843,4496.1,4496.0,2.06454199]
[1758044408239,0.41667843,4496.1,4496.0,2.49342446]
[1758044408628,0.41667843,4496.1,4496.0,2.06454199]
[1758044409765,0.41667843,4496.1,4496.0,2.0423]
[1758044410143,0.41867843,4496.1,4496.0,4.26649928]
[1758044410344,0.21033919,4496.1,4496.0,4.26649928]
[1758044410556,0.21033919,4496.1,4496.0,2.0423]
[1758044410767,0.21033919,4496.1,4496.0,2.17215]
[1758044411066,0.21033919,4496.1,4496.0,2.64175]
[1758044411362,0.41867843,4496.1,4496.0,2.64175]
[1758044411563,0.21033919,4496.1,4496.0,2.64175]
[1758044411735,0.21033919,4496.1,4496.0,1.68595]
[1758044411930,0.21033919,4496.1,4496.0,2.17215]
[1758044412478,0.21033919,4496.1,4496.0,4.86594928]
[1758044412985,0.002,4496.1,4496.0,4.86594928]
[1758044413589,0.002,4496.1,4496.0,19.36594928]
[1758044418576,0.002,4496.1,4496.0,22.36594928]
[1758044420173,0.002,4496.1,4496.0,26.19394928]
[1758044420361,0.002,4496.1,4496.0,21.89634928]
[1758044420674,0.002,4496.1,4496.0,18.89634928]
[1758044420876,0.002,4496.1,4496.0,22.72334928]
[1758044421569,0.002,4496.1,4496.0,18.89634928]
[1758044421887,0.3131,4496.1,4496.0,17.32364928]
[1758044422088,0.3131,4496.1,4496.0,21.14964928]
[1758044422238,0.3131,4496.1,4496.0,21.94164928]
[1758044422442,0.002,4496.1,4496.0,7.44164928]
[1758044422642,0.002,4496.1,4496.0,7.73614928]
[1758044423074,0.002,4496.1,4496.0,8.33354928]
[1758044423374,0.002,4496.1,4496.0,8.80314928]
[1758044423752,0.002,4496.1,4496.0,8.33354928]
[1758044424763,0.2897,4496.1,4496.0,0.9032]
[1758044425078,0.7314,4496.1,4496.0,6.95139928]
[1758044425253,1.1696,4496.1,4496.0,4.7262]
[1758044425650,1.1696,4496.1,4496.0,3.823]
[1758044426055,3.39374981,4496.1,4496.0,3.823]
[1758044426498,3.39374981,4496.1,4496.0,4.615]
[1758044426647,1.1696,4496.1,4496.0,4.615]
[1758044428252,0.7314,4496.1,4496.0,4.615]
[1758044428882,3.39374981,4496.1,4496.0,4.615]
[1758044429082,4.17426769,4496.1,4496.0,0.792]
[1758044429287,4.38191033,4496.1,4496.0,0.792]
[1758044430084,2.22429823,4495.8,4495.7,2.501]
[1758044430260,3.80717843,4495.8,4495.7,6.32]
[1758044430686,2.22434771,4495.7,4495.6,0.001]
[1758044430891,3.30172358,4495.7,4495.6,0.793]
[1758044431093,3.58942358,4495.7,4495.6,0.793]
[1758044431390,4.46932358,4495.7,4495.6,0.793]
[1758044432272,4.46932358,4495.7,4495.6,0.001]
[1758044432456,7.46932358,4495.7,4495.6,0.001]
[1758044432656,7.94769109,4495.7,4495.6,0.001]
[1758044433679,11.76469109,4495.7,4495.6,0.001]
[1758044434908,2.22468694,4495.1,4494.9,0.42985716]
[1758044435059,0.41523839,4495.0,4494.9,0.42985716]
[1758044435255,2.9540941,4495.0,4494.9,0.42985716]
[1758044435606,3.16171045,4495.0,4494.9,0.42985716]
[1758044435905,0.93701635,4495.0,4494.9,0.42985716]
[1758044436205,3.36927509,4495.0,4494.9,0.42985716]
[1758044436374,0.93701635,4495.0,4494.9,0.42985716]
[1758044436589,2.9540941,4495.0,4494.9,0.42985716]
[1758044436788,3.16171045,4495.0,4494.9,0.42985716]
[1758044437285,3.59991045,4495.0,4494.9,0.42985716]
[1758044437609,3.59991045,4495.0,4494.5,3.822]
[1758044437610,5.22474359,4494.9,4494.5,3.821]
[1758044437778,3.85678928,4494.9,4494.5,3.821]
[1758044437976,5.72005994,4494.9,4494.5,3.821]
[1758044438476,5.72005994,4494.9,4494.4,4.2899]
[1758044438810,3.49531635,4494.9,4494.4,4.2899]
[1758044438986,6.39810568,4494.9,4494.4,4.31214991]
[1758044439187,6.39810568,4494.9,4494.4,4.2899]
[1758044439394,4.17336209,4494.9,4494.4,3.819]
[1758044439597,2.22461655,4495.2,4494.8,0.9075]
[1758044439796,2.43198024,4495.1,4494.8,0.9075]
[1758044440013,2.51244359,4494.9,4494.8,0.12]
[1758044440179,3.2877,4494.9,4494.8,0.12]
[1758044440379,5.51244359,4494.9,4494.8,0.912]
[1758044440580,4.28064436,4494.9,4494.8,0.912]
[1758044440771,3.55124436,4494.9,4494.8,0.912]
[1758044441206,3.83894436,4494.9,4494.8,0.912]
[1758044441408,3.83894436,4494.9,4494.8,1.6995]
[1758044441409,3.0,4494.9,4494.8,1.6995]
[1758044441787,3.0,4494.9,4494.8,1.2286]
[1758044442411,3.0,4494.9,4494.8,1.72174793]
[1758044442598,2.88648852,4495.7,4494.9,3.01670831]
[1758044442807,5.9667,4496.0,4495.1,0.792]
[1758044443010,2.22450271,4495.4,4495.1,0.792]
[1758044443186,0.2877,4495.2,4495.0,3.816]
[1758044443520,2.2243953,4495.7,4495.0,3.816]
[1758044443714,0.1112,4495.2,4495.1,0.3166]
[1758044443947,0.3989,4495.2,4494.8,0.12]
[1758044444104,0.4417,4495.1,4494.8,0.12]
[1758044444286,2.22474359,4494.9,4494.8,0.12]
[1758044444490,7.46122979,4494.9,4494.8,0.12]
[1758044444990,7.46122979,4494.9,4494.8,0.4366]
[1758044444991,3.86170377,4494.9,4494.8,0.4366]
[1758044445189,3.0,4494.9,4494.8,0.4366]
[1758044445390,3.0,4494.9,4494.8,0.9075]
[1758044446020,3.0,4494.9,4494.8,0.9085]
[1758044446222,3.0,4494.9,4494.8,0.4376]
[1758044447393,3.0,4494.9,4494.8,0.121]
[1758044448291,2.22443699,4495.6,4494.9,0.792]
[1758044448512,0.1112,4495.3,4494.9,0.792]
[1758044448706,0.1112,4495.3,4495.2,0.3166]
[1758044448922,0.1112,4495.3,4494.9,1.2233]
[1758044448923,0.1112,4495.3,4494.9,0.792]
[1758044449135,2.22462783,4495.2,4494.9,0.792]
[1758044449340,2.33575595,4495.3,4494.9,0.792]
[1758044449528,0.2075086,4495.2,4494.9,0.792]
[1758044449728,5.33575031,4495.3,4494.9,0.792]
[1758044450041,0.1112,4495.3,4495.0,0.4709]
[1758044450248,0.1112,4495.3,4495.1,0.4709]
[1758044450744,3.1112,4495.3,4495.1,0.4709]
[1758044450943,0.20750554,4495.2,4494.9,0.792]
[1758044451146,2.51229512,4495.2,4494.9,0.792]
[1758044451306,0.20767936,4495.1,4494.9,0.792]
[1758044452055,0.20767937,4495.1,4494.9,0.792]
[1758044452221,2.22460714,4495.2,4494.9,1.2629]
[1758044452425,2.43232717,4495.1,4494.9,1.2629]
[1758044452759,3.1618592,4495.0,4494.8,3.93]
[1758044453046,0.7294,4495.0,4494.8,3.93]
[1758044453353,2.7201576,4495.0,4494.8,3.93]
[1758044453514,0.2877,4495.0,4494.8,3.93]
[1758044454453,2.22463562,4495.2,4494.8,4.412]
[1758044454627,0.41571506,4495.1,4494.8,4.412]
[1758044454825,2.22463155,4495.2,4494.8,4.412]
[1758044455025,0.41583286,4495.1,4494.9,0.4782]
[1758044455210,2.22454563,4495.3,4495.0,1.5596]
[1758044455549,0.41583736,4495.2,4495.1,0.4782]
[1758044455751,2.64039307,4495.3,4495.1,0.4782]
[1758044455936,2.64043248,4495.2,4495.1,0.7676]
[1758044456140,0.41583736,4495.2,4494.9,0.792]
[1758044456441,2.22474359,4494.9,4494.8,0.121]
[1758044456658,2.95105343,4494.9,4494.8,3.927]
[1758044457174,2.64085343,4494.9,4494.8,3.927]
[1758044457380,0.41610984,4494.9,4494.8,4.2164]
[1758044458072,0.41610984,4494.9,4494.8,0.4104]
[1758044458262,0.41610984,4495.0,4494.8,4.6946]
[1758044458461,0.41610984,4495.0,4494.9,1.712]
[1758044458665,0.41610984,4495.2,4495.0,0.792]
[1758044458853,0.20797983,4495.1,4495.0,1.0814]
[1758044459171,0.20797983,4495.1,4495.0,1.5596]
[1758044459373,0.41610984,4495.1,4495.0,1.5596]
[1758044460075,0.41610984,4495.1,4495.0,5.3636]
[1758044460577,0.20797983,4495.1,4495.0,5.8054]
[1758044460736,0.41610984,4495.1,4495.0,5.3636]
[1758044460936,0.20797983,4495.1,4495.0,4.596]
[1758044461161,0.4165721,4495.1,4495.0,4.596]
[1758044461878,0.20844209,4495.1,4495.0,5.89424]
[1758044462079,0.4165721,4495.7,4495.5,0.792]
[1758044462264,0.002,4495.8,4495.7,0.792]
[1758044462567,0.002,4495.8,4495.0,2.35184]
[1758044462568,0.3102,4495.6,4495.0,1.71]
[1758044462769,0.1112,4495.4,4495.1,0.792]
[1758044462941,2.54409067,4495.4,4495.1,4.596]
[1758044463141,2.54409067,4495.4,4495.1,0.792]
[1758044463142,2.64108407,4495.3,4495.1,0.792]
[1758044463344,2.33569885,4495.4,4495.2,3.805]
[1758044463561,0.4167797,4495.3,4495.2,3.805]
[1758044463768,0.7269797,4495.3,4495.2,3.805]
[1758044464393,0.7269797,4495.3,4495.1,4.595]
[1758044464609,0.20838985,4495.2,4495.1,4.595]
[1758044464958,0.20838985,4495.2,4495.1,3.803]
[1758044465376,0.51858985,4495.2,4495.1,3.803]
[1758044465577,0.20838985,4495.3,4495.1,3.803]
[1758044466103,0.20838985,4495.3,4495.2,2.0014]
[1758044466271,0.31958985,4495.4,4495.3,0.792]
[1758044466464,0.31958985,4495.4,4495.3,3.95879108]
[1758044466659,0.20838985,4495.4,4495.3,1.29244545]
[1758044466875,0.20838985,4495.4,4495.3,1.58184545]
[1758044467082,0.20838985,4495.4,4495.3,5.38484545]
[1758044467284,0.20838985,4495.4,4495.3,5.3626]
[1758044467496,0.20838985,4495.5,4495.3,5.3626]
[1758044467854,0.002,4495.6,4495.5,0.792]
[1758044467855,0.21038985,4495.6,4495.5,0.792]
[1758044467963,0.65174234,4495.6,4495.5,4.595]
[1758044468168,2.95332937,4495.6,4495.5,4.595]
[1758044468576,0.72893219,4495.6,4495.5,4.595]
[1758044468785,0.72893219,4495.6,4495.1,0.792]
[1758044468786,2.22452798,4495.4,4495.1,0.792]
[1758044469114,2.64128302,4495.3,4495.2,3.803]
[1758044469316,0.72693219,4495.3,4495.2,3.803]
[1758044469681,0.20834234,4495.3,4495.2,5.3626]
[1758044469889,1.16833219,4495.3,4494.4,2.22494713]
[1758044470094,1.08616541,4495.2,4494.5,3.803]
[1758044470408,0.41673219,4495.1,4494.5,6.02789883]
[1758044470605,0.20834234,4495.0,4494.6,2.24712632]
[1758044470767,0.20834234,4495.0,4494.6,0.02224892]
[1758044470969,0.20834234,4495.0,4494.9,0.1722]
[1758044471303,0.20834234,4495.0,4494.9,3.82524743]
[1758044471468,0.20838985,4495.1,4494.9,3.99744743]
[1758044471469,0.20834234,4495.1,4494.9,3.99744743]
[1758044471681,0.1112,4495.2,4494.9,3.99744743]
[1758044472080,0.20834234,4495.2,4495.0,2.70284871]
[1758044472279,0.41673157,4495.3,4495.1,0.02224644]
[1758044472583,0.20838636,4495.4,4495.2,6.5057524]
[1758044472787,0.20838636,4495.4,4495.3,0.4782]
[1758044473394,0.20838636,4495.4,4495.3,0.6504]
[1758044473610,0.20838636,4495.5,4495.3,0.6504]
[1758044473782,0.20838636,4495.5,4495.4,0.50044496]
[1758044474497,0.20838636,4495.5,4495.4,0.67264496]
[1758044475931,0.95998636,4495.5,4495.0,0.1112]
[1758044476130,0.95998636,4495.5,4494.5,0.792]
[1758044476131,1.33437461,4495.4,4495.1,3.803]
[1758044476310,0.3102,4495.2,4495.1,3.803]
[1758044476510,0.1112,4495.4,4495.1,3.803]
[1758044476825,0.31958636,4495.4,4495.2,0.02224595]
[1758044477189,0.1112,4495.4,4495.2,0.02224595]
[1758044478288,0.1112,4495.4,4495.2,2.7250354]